[Event "41st Zalakaros Festival 2022"]
[Site "Zalakaros"]
[Date "2022.06.05"]
[Round "1.6"]
[White "Metaxasz, Vaszilisz"]
[Black "Papp, Levente"]
[Result "0-1"]
[ECO "A19"]
[WhiteElo "1973"]
[BlackElo "2401"]
[Annotator "TA"]
[PlyCount "102"]
[EventDate "2022.06.05"]
[EventType "swiss"]
[EventCountry "HUN"]
[SourceTitle "playchess.com"]
[Source "ChessBase"]
[SourceQuality "1"]
[TimeControl "40/5400+30:1800+30"]

{[%evp 20,102,13,11,18,23,8,13,14,14,20,26,89,27,45,58,52,32,37,10,30,18,18,20,12,16,8,15,10,6,28,0,31,25,18,-36,-38,-38,-10,-33,-45,-33,-14,-44,-25,-151,-7,-280,-278,-268,-274,-275,-279,-276,-291,-279,-276,-320,-230,-231,-214,-289,-282,-300,-271,-325,-331,-332,-332,-322,-265,-418,-411,-445,-398,-509,-556,-762,-698,-29965,-29958,-29972,-29973,-5034,-4898]} 1. c4 {[%emt 0:00:33]} Nf6 {[%emt 0:01:43]} 2. Nc3 {[%emt 0:00:15]} e6 {[%emt 0:02:16]} 3. e4 {[%emt 0:00:21][%cal Be2e4,Be4e5][%mdl 32]} c5 {[%emt 0:00:46]} 4. e5 {[%emt 0:04:43]} Ng8 {[%emt 0:00:14]} 5. Nf3 {[%emt 0:01:09]} Nc6 {[%emt 0:00:07]} 6. d4 {[%emt 0:01:19]} cxd4 {[%emt 0:00:06]} 7. Nxd4 {[%emt 0:00:45]} Nxe5 {[%emt 0:00:07]} 8. Ndb5 {[%emt 0:01:01]} a6 {[%emt 0:12:05]} 9. Nd6+ {[%emt 0:00:37]} Bxd6 {[%emt 0:00:07]} 10. Qxd6 {[%emt 0:00:08]} f6 {[%emt 0:00:56]} 11. Be3 {[%emt 0:15:08][%mdl 1024] White has compensation.} Ne7 {[%emt 0:00:22] A19: English Opening: Flohr-Mikenas System with 3...c5.} 12. Bb6 {[%emt 0:10:44]} Nf5 {[%emt 0:00:23]} 13. Qb4 {[%emt 0:00:14] is cutting edge theory.} Nc6 {[%emt 0:12:08] Pair of Knights! The position is equal.} 14. Qc5 {[%emt 0:02:08]} Qe7 {[%emt 0:01:43]} 15. O-O-O {[%emt 0:02:28]} O-O {[%emt 0:14:37] [#]} (15... Qxc5 $11 16. Bxc5 d6) 16. g4 $146 {[%emt 0:10:06]} (16. Qxe7 $1 $16 Nfxe7 17. c5) ({Predecessor:} 16. Qxe7 Nfxe7 17. c5 Nf5 18. Bc7 Nfd4 19. Na4 Nb5 20. Bg3 Nbd4 21. Nb6 Ra7 22. Bc4 {1-0 (50) Domingues,M-Bonthuys,A ICCF email 2016}) 16... Qxc5 {[%emt 0:07:54]} 17. Bxc5 {[%emt 0:00:11]} d6 {[%emt 0:00:14]} 18. Bb6 {[%emt 0:05:04]} (18. Ba3 $5 {[%cal Rg4f5]} Nfd4 19. Bxd6 $14) 18... Nh6 {[%emt 0:00:39]} 19. h3 {[%emt 0:00:35]} f5 {[%emt 0:00:53]} 20. Be2 {[%emt 0:10:00]} e5 {[%emt 0:06:53][%cal Rf5g4]} 21. f3 {[%emt 0:01:13]} Nf7 {[%emt 0:03:15]} 22. h4 {[%emt 0:04:49]} Be6 {[%emt 0:01:25]} 23. b3 {[%emt 0:00:33]} Rac8 {[%emt 0:01:54]} 24. Kb2 {[%emt 0:00:14]} Ne7 {[%emt 0:01:54]} 25. a4 {[%emt 0:00:52]} Ng6 {[%emt 0:04:28]} 26. gxf5 {[%emt 0:08:23]} Bxf5 {[%emt 0:00:05]} 27. Bd3 {[%emt 0:00:45]} (27. Nd5 $11) 27... Bxd3 $15 {[%emt 0:03:15]} 28. Rxd3 {[%emt 0:00:11]} Rfe8 {[%emt 0:02:09]} 29. Ne4 {[%emt 0:02:07]} Re6 {[%emt 0:00:08][%cal Od6d5] Hoping for ...d5!} 30. a5 {[%emt 0:00:19]} Ne7 {[%emt 0:02:20]} 31. Rhd1 {[%emt 0:04:32][%cal Re4d6]} Nf5 {[%emt 0:04:11]} 32. c5 {[%emt 0:02:44] [#]} (32. h5 $11) 32... dxc5 {[%emt 0:06:27]} ({Black should play} 32... d5 $1 $17 {[%cal Rd5e4]} 33. Rxd5 Ne3) 33. Nxc5 {[%emt 0:00:58][%mdl 8192] [#] Now White is beyond hope.} (33. Rd7 $1 $11 {and White is okay.}) 33... Rxb6 $1 $19 {[%emt 0:01:11][%mdl 512]} 34. axb6 {[%emt 0:01:46]} Rxc5 {[%emt 0:00:01]} 35. Rd7 {[%emt 0:00:58] [#] Strongly threatening Rc7.} Rb5 $1 {[%emt 0:02:35]} ({Much less strong is} 35... Nxh4 36. Rxb7 h5 37. Rdd7 $18) ({Don't do} 35... Ne3 36. R1d3 Rb5 37. Rxe3 Rxb6 38. f4 $18) 36. Rxb7 {[%emt 0:00:44]} N7d6 {[%emt 0:01:04]} 37. Rb8+ {[%emt 0:00:14]} Kf7 {[%emt 0:00:01]} 38. Rc1 {[%emt 0:00:48]} Ke6 {[%emt 0:01:08]} 39. h5 {[%emt 0:07:05]} a5 {[%emt 0:00:17]} 40. Ka3 {[%emt 0:00:00]} Nd4 {[%emt 0:00:00]} 41. Rc3 {[%emt 0:01:18]} Kd5 {[%emt 0:07:58]} 42. Ka2 {[%emt 0:02:29]} Nc6 {[%emt 0:01:47]} 43. Rg8 {[%emt 0:11:23]} Nf5 {[%emt 0:01:37]} ({Don't blunder} 43... Rxb6 $2 44. Rxg7 Nb5 45. Rd3+ Nbd4 46. Kb2 $19) 44. Rf8 {[%emt 0:01:45]} g6 {[%emt 0:01:35]} 45. hxg6 {[%emt 0:01:04]} (45. Rf7 {keeps fighting.}) 45... hxg6 {[%emt 0:01:54]} 46. Rf6 {[%emt 0:04:03]} Rxb6 {[%emt 0:00:16]} 47. Ka3 {[%emt 0:00:11]} Nfd4 {[%emt 0:00:10] ...Nb5+ is the strong threat.} 48. Rd3 {[%emt 0:01:43]} a4 {[%emt 0:02:30][%cal Ba5a4,Ba4a3][%mdl 32]} 49. b4 {[%emt 0:06:57]} Kc4 {[%emt 0:02:13]} 50. Rd1 {[%emt 0:00:14]} Nc2+ {[%emt 0:01:26]} 51. Kb2 {[%emt 0:00:58]} a3+ {[%emt 0:00:19] Weighted Error Value: White=0.60/Black=0.16 (very precise)} 0-1

[Event "41st Zalakaros Festival 2022"]
[Site "Zalakaros"]
[Date "2022.06.05"]
[Round "1.7"]
[White "Okhotnik, Vladimir"]
[Black "Varga, Richard"]
[Result "1-0"]
[ECO "B50"]
[WhiteElo "2336"]
[BlackElo "1989"]
[Annotator "TA"]
[PlyCount "53"]
[EventDate "2022.06.05"]
[EventType "swiss"]
[EventCountry "HUN"]
[SourceTitle "playchess.com"]
[Source "ChessBase"]
[SourceQuality "1"]
[TimeControl "40/5400+30:1800+30"]

{[%evp 11,53,0,17,9,10,-12,31,28,19,-24,-21,-11,0,0,51,18,44,29,47,19,117,106,445,457,418,437,457,461,425,440,448,279,275,265,264,241,496,488,576,571,562,401,377,373]} 1. e4 {[%emt 0:00:35]} c5 {[%emt 0:00:38]} 2. Nf3 {[%emt 0:00:08]} d6 {[%emt 0:00:06]} 3. Bc4 {[%emt 0:00:10]} Nc6 {[%emt 0:00:34]} 4. d3 {[%emt 0:00:11]} g6 {[%emt 0:00:36]} 5. c3 {[%emt 0:00:12]} Bg7 {[%emt 0:00:49]} 6. O-O {[%emt 0:00:12]} Nf6 {[%emt 0:01:17]} 7. a4 {[%emt 0:00:59] B50: Sicilian: 2...d6, Miscellaneous.} O-O {[%emt 0:02:57]} 8. Nbd2 {[%emt 0:00:17]} d5 {[%emt 0:09:55]} 9. exd5 {[%emt 0:01:47] White is slightly better.} Nxd5 {[%emt 0:00:14] [#]} 10. Ne4 $146 {[%emt 0:00:33]} ({Predecessor:} 10. a5 e6 11. Nb3 Qc7 12. Bg5 Nce7 13. Qd2 Rb8 14. Rfe1 f6 15. Bxd5 Nxd5 16. Bh4 {0-1 (33) Bach,A (2264)-Drenchev,P (2499) Plovdiv 2012}) 10... b6 {[%emt 0:02:01]} 11. Re1 {[%emt 0:00:21]} Na5 {[%emt 0:09:19]} 12. Ba2 {[%emt 0:00:19]} Ba6 {[%emt 0:00:26]} (12... Bb7 $11) 13. d4 {[%emt 0:01:33]} cxd4 {[%emt 0:11:09]} 14. Nxd4 {[%emt 0:00:11][%cal Bf3d4,Bd4b5,Bb5d6][%mdl 32]} Bb7 {[%emt 0:07:56]} 15. Bg5 {[%emt 0:02:10]} Rc8 {[%emt 0:05:36] [#]} (15... h6 $11 16. Bh4 Qd7) 16. Nb5 $1 $16 {[%emt 0:05:13][%cal Ob5d6] aiming for Nbd6! White is more active.} a6 $2 {[%emt 0:05:54][%mdl 8192] [#] A mistake that costs the game.} (16... Qd7 $16 {is a better chance.}) 17. Nbd6 $1 $18 {[%emt 0:00:20][%mdl 512]} Nf6 {[%emt 0:04:03]} 18. Bxf6 {[%emt 0:03:16]} ({Don't do} 18. Nxc8 Qxc8 19. Bxf6 Bxf6 20. Nxf6+ exf6 $18) 18... exf6 {[%emt 0:01:17]} 19. Nxc8 {[%emt 0:00:09]} Qxc8 {[%emt 0:00:05]} 20. Nd6 {[%emt 0:00:08]} Qc7 {[%emt 0:01:18]} 21. Nxb7 {[%emt 0:00:16]} Nxb7 {[%emt 0:00:06]} 22. Qe2 {[%emt 0:00:58]} a5 {[%emt 0:00:41]} 23. Qc4 {[%emt 0:00:30]} Qb8 {[%emt 0:01:15]} (23... Qxc4 24. Bxc4 f5) 24. Rad1 {[%emt 0:00:44][%cal Ba1d1,Bd1d7,Bd7c7][%mdl 32]} f5 {[%emt 0:00:39]} 25. Rd7 {[%emt 0:00:37][%cal Rd7f7]} Nd6 {[%emt 0:02:07]} 26. Qc7 {[%emt 0:00:53]} Qxc7 {[%emt 0:01:26]} 27. Rxc7 {[%emt 0:00:06] Weighted Error Value: White=0.23 (precise) /Black=0.59} 1-0

[Event "41st Zalakaros Festival 2022"]
[Site "Zalakaros"]
[Date "2022.06.05"]
[Round "1.8"]
[White "Toth, Lili"]
[Black "Farkas, Gabor"]
[Result "0-1"]
[ECO "D31"]
[WhiteElo "2199"]
[BlackElo "2324"]
[Annotator "TA"]
[PlyCount "56"]
[EventDate "2022.06.05"]
[EventType "swiss"]
[EventCountry "HUN"]
[SourceTitle "playchess.com"]
[Source "ChessBase"]
[SourceQuality "1"]
[TimeControl "40/5400+30:1800+30"]

{[%evp 17,56,31,28,18,41,41,77,50,55,21,20,0,0,0,108,-65,-65,-65,-64,-195,-182,-241,-250,-269,-35,-589,-384,-384,-378,-378,-191,-385,-384,-368,-366,-360,-352,-487,-485,-490,-479]} 1. d4 {[%emt 0:00:33]} d5 {[%emt 0:00:39]} 2. c4 {[%emt 0:00:10]} e6 {[%emt 0:00:07]} 3. Nc3 {[%emt 0:00:12]} c6 {[%emt 0:00:06]} 4. e4 {[%emt 0:00:29]} dxe4 5. Nxe4 {[%emt 0:00:21]} Nf6 {[%emt 0:01:16]} 6. Nxf6+ {[%emt 0:01:14]} Qxf6 {[%emt 0:00:58]} 7. Nf3 {[%emt 0:00:18]} Bb4+ {[%emt 0:06:59]} 8. Bd2 {[%emt 0:00:36]} Bxd2+ {[%emt 0:00:28]} 9. Qxd2 {[%emt 0:00:59]} O-O {[%emt 0:00:31]} 10. Bd3 {[%emt 0:00:41] D31: Queen's Gambit Declined: Semi-Slav without ...Nf6 (+ Marshall Gambit and Noteboom) and Exchange Variation lines without ...Nf6.} Rd8 {[%emt 0:05:51][%cal Oc6c5]} 11. O-O {[%emt 0:01:18]} Nd7 {[%emt 0:06:50]} 12. Rad1 {[%emt 0:05:27] White is better.} b6 {[%emt 0:03:22] [#]} 13. Ne5 $146 {[%emt 0:12:38]} ({Predecessor:} 13. Qc2 Kh8 14. c5 Bb7 15. Rfe1 Rac8 16. Be4 h6 17. b4 Rc7 18. Ne5 Rdc8 19. Nc4 {1-0 (33) Doric,D (2468)-Djeno,S (2015) Pula 2009}) 13... Bb7 {[%emt 0:01:37]} 14. f4 {[%emt 0:05:18]} c5 {[%emt 0:02:41]} 15. Qc2 {[%emt 0:00:59]} g6 {[%emt 0:09:09]} (15... cxd4 $11 {remains equal.} 16. Bxh7+ Kf8) 16. Nxd7 $2 {[%emt 0:06:37]} (16. Be4 $16 Bxe4 17. Qxe4) 16... Rxd7 $15 {[%emt 0:00:38]} ({Don't take} 16... Qxd4+ 17. Kh1 Qxd7 18. Bxg6 $1 $11) 17. dxc5 {[%emt 0:02:00]} Rad8 $1 {[%emt 0:03:32] And now ...Qd4+ would win.} 18. cxb6 {[%emt 0:04:58] [#]} ({White should try} 18. Be2 $1 $15) 18... Qd4+ $1 $19 {[%emt 0:00:12]} 19. Rf2 {[%emt 0:04:53] [#]} (19. Qf2 {was called for.} Qxf2+ 20. Kxf2 Rxd3 21. Rxd3 Rxd3 22. bxa7) 19... Be4 $3 {[%emt 0:02:02][%mdl 576] Pin} 20. c5 {[%emt 0:20:10]} (20. b7 Rxb7) 20... Bxd3 $2 {[%emt 0:00:38]} (20... axb6 $19 21. c6 Rc7 22. Bxe4 Qxd1+ 23. Qxd1 Rxd1+ 24. Rf1 Rd4) 21. c6 $2 {[%emt 0:00:45][%mdl 8192]} (21. Rxd3 $15 Qxd3 22. Qxd3 Rxd3 23. b7 Rd1+ 24. Rf1) 21... Bxc2 {[%emt 0:13:04]} 22. Rxd4 {[%emt 0:00:19]} Rxd4 {[%emt 0:00:06]} 23. c7 {[%emt 0:01:10]} Rd1+ {[%emt 0:01:43]} 24. Rf1 {[%emt 0:00:26] [#]} Be4 {[%emt 0:00:10] aiming for ...Rxf1+.} 25. cxd8=Q+ {[%emt 0:05:18]} Rxd8 {[%emt 0:00:10]} 26. bxa7 {[%emt 0:00:12]} Ra8 {[%emt 0:00:20]} 27. a4 {[%emt 0:04:19]} ({But not} 27. Re1 f5 28. g3 Rxa7 $19) 27... Rxa7 {[%emt 0:00:18]} 28. Ra1 {[%emt 0:00:06]} Rb7 {[%emt 0:00:08] Weighted Error Value: White=0.79/Black=0.41} 0-1

[Event "41st Zalakaros Festival 2022"]
[Site "Zalakaros"]
[Date "2022.06.05"]
[Round "1.9"]
[White "Peczely, Sebastian Zsombor"]
[Black "Majoros, Rozsa Evelin"]
[Result "1-0"]
[ECO "B30"]
[WhiteElo "2313"]
[BlackElo "1957"]
[Annotator "TA"]
[PlyCount "87"]
[EventDate "2022.06.05"]
[EventType "swiss"]
[EventCountry "HUN"]
[SourceTitle "playchess.com"]
[Source "ChessBase"]
[SourceQuality "1"]
[TimeControl "40/5400+30:1800+30"]

{[%evp 9,87,-2,-8,-15,-11,-25,24,29,67,66,125,87,129,126,141,133,180,198,197,204,177,189,175,191,320,167,342,160,322,310,311,312,304,304,295,285,337,340,332,291,367,355,394,396,453,442,490,469,783,543,542,538,519,513,491,491,632,618,690,683,686,678,693,569,12831,12831,12831,12830,6049,11854,2228,1740,12833,12833,5531,1113,1051,908,29995,12846]} 1. e4 {[%emt 0:00:32]} c5 {[%emt 0:00:38]} 2. Nf3 {[%emt 0:00:05]} Nc6 {[%emt 0:00:11]} 3. Bd3 {[%emt 0:01:04]} g6 {[%emt 0:06:36]} 4. c3 {[%emt 0:05:40]} d5 {[%emt 0:04:59]} 5. O-O {[%emt 0:04:36]} Bg7 {[%emt 0:02:55]} 6. Re1 {[%emt 0:01:39] B30: Sicilian: 2...Nc6 3 Bb5, lines without ...g6.} Nf6 {[%emt 0:03:57]} 7. e5 {[%emt 0:02:28]} Ng4 {[%emt 0:07:24]} (7... Ne4 $142) 8. Bb5 $1 $11 {[%emt 0:00:30] [#] White has an edge.} Bd7 $146 {[%emt 0:05:51][%cal Rg4e5]} ({Predecessor:} 8... O-O 9. d4 Qb6 10. Bxc6 bxc6 11. h3 Nh6 12. dxc5 Qxc5 13. Be3 Qa5 14. Nbd2 f6 {0-1 (39) Huizer,M (2195)-Abolianin,A (2384) Ghent 2000}) 9. Bxc6 {[%emt 0:01:33]} ({Of course not} 9. d4 Ncxe5 $1 10. Bxd7+ Nxd7 $11) 9... bxc6 {[%emt 0:01:07]} (9... Bxc6 $14 10. h3 Nh6) 10. d4 {[%emt 0:00:47]} Qb6 {[%emt 0:03:15]} 11. Nbd2 {[%emt 0:12:07]} cxd4 {[%emt 0:04:57]} 12. cxd4 {[%emt 0:00:09]} c5 {[%emt 0:02:14]} (12... O-O $16 {was worth a try.}) 13. h3 $18 {[%emt 0:01:11]} Nh6 {[%emt 0:01:44] [#]} 14. dxc5 {[%emt 0:00:11]} Qxc5 {[%emt 0:02:03]} 15. Nb3 {[%emt 0:00:10]} Qb5 {[%emt 0:03:21]} 16. Bg5 {[%emt 0:01:25] Qd2 is the strong threat.} Nf5 {[%emt 0:03:46]} (16... O-O {is a better defense.} 17. Bxe7 Rfe8) 17. Rc1 {[%emt 0:04:24]} (17. g4 $142) 17... Rc8 $2 {[%emt 0:04:07]} (17... h6 {might work better.}) 18. Rxc8+ {[%emt 0:08:27]} Bxc8 {[%emt 0:03:07] [#]} 19. g4 $1 {[%emt 0:00:05]} h6 {[%emt 0:12:48]} 20. Bc1 {[%emt 0:00:09]} ({Weaker is} 20. gxf5 hxg5 21. Nbd4 Qc4 $16) 20... Qc4 {[%emt 0:03:17]} 21. gxf5 {[%emt 0:02:10]} Bxf5 {[%emt 0:00:10]} 22. Kh2 {[%emt 0:03:38]} Bc2 {[%emt 0:04:12]} 23. Qd4 {[%emt 0:04:36]} Bxb3 {[%emt 0:01:48]} 24. axb3 {[%emt 0:00:14]} Qxb3 {[%emt 0:00:15]} 25. Re3 {[%emt 0:00:33][%cal Be1e3,Be3a3,Ba3a7][%mdl 32]} Qb7 {[%emt 0:01:06]} 26. Ra3 {[%emt 0:01:49]} O-O {[%emt 0:04:18]} 27. Rxa7 {[%emt 0:00:30]} Qc6 {[%emt 0:00:40]} 28. Be3 {[%emt 0:02:24]} f6 {[%emt 0:01:57]} (28... e6 $142 29. Kg2 Qc2) 29. Qb4 {[%emt 0:09:41]} fxe5 {[%emt 0:05:19]} 30. Qxe7 {[%emt 0:00:08][%csl Ga7][%cal Re7g7]} Qf6 {[%emt 0:00:25]} 31. Qxf6 {[%emt 0:00:09]} Bxf6 {[%emt 0:00:18]} 32. Bxh6 {[%emt 0:00:25]} Rb8 {[%emt 0:00:49]} 33. Ra6 {[%emt 0:02:23]} Kf7 {[%emt 0:01:45]} 34. Ng5+ {[%emt 0:01:04]} Bxg5 {[%emt 0:00:30]} 35. Bxg5 {[%emt 0:00:12]} Rxb2 {[%emt 0:00:08][%mdl 4096] Endgame KRB-KR} 36. Kg2 {[%emt 0:00:06]} e4 {[%emt 0:01:40]} 37. Rf6+ {[%emt 0:01:27]} Kg7 {[%emt 0:00:28]} 38. Rd6 {[%emt 0:00:13]} Rb5 {[%emt 0:00:40]} 39. Be3 {[%emt 0:01:05]} Kf7 {[%emt 0:01:32]} 40. h4 {[%emt 0:00:00]} Kg7 {[%emt 0:00:00]} 41. Kg3 {[%emt 0:01:40]} Ra5 {[%emt 0:03:16]} 42. Kg4 {[%emt 0:00:39]} (42. Kf4 $142 Kf7 43. Ke5) 42... Kh7 {[%emt 0:01:43]} 43. Bd4 {[%emt 0:01:03] White threatens Rd8 and mate.} Kh6 {[%emt 0:01:16]} 44. Rd8 {[%emt 0:00:48] Black got outplayed after the opening.  Weighted Error Value: White=0.24 (precise) /Black=0.44} (44. Rd7 $142 Ra3 45. Bf6 Rg3+ 46. fxg3 g5 47. hxg5+ Kg6 48. Rg7#) 1-0

[Event "41st Zalakaros Festival 2022"]
[Site "Zalakaros"]
[Date "2022.06.05"]
[Round "1.10"]
[White "Nemeth, Attila Janos"]
[Black "Ianov, Viktor"]
[Result "1/2-1/2"]
[ECO "A42"]
[WhiteElo "1938"]
[BlackElo "2279"]
[Annotator "TA"]
[PlyCount "139"]
[EventDate "2022.06.05"]
[EventType "swiss"]
[EventCountry "HUN"]
[SourceTitle "playchess.com"]
[Source "ChessBase"]
[SourceQuality "1"]
[TimeControl "40/5400+30:1800+30"]

{[%evp 13,139,37,49,41,55,27,25,-27,-24,-15,-21,-45,-31,-93,-33,-36,-29,-37,-17,-14,0,-12,0,-35,-18,-34,-25,-33,-8,-21,0,-26,-26,-65,-51,-97,-97,-106,-60,-64,0,0,0,0,0,0,12,30,32,0,16,0,42,0,42,0,0,-64,0,0,0,0,210,210,210,210,264,262,318,207,174,174,213,208,212,207,324,325,265,156,163,125,248,43,38,31,64,24,24,0,0,-6,-4,-8,-8,-8,-7,-8,-8,-8,-8,-176,-8,-371,-8,-8,-8,-8,-8,-8,-8,-40,-32,-576,-8,-49,-8,-79,-8,-8,-8,-8,-8,-8,-8,-4129,-8,-8]} 1. d4 {[%emt 0:00:34]} d6 {[%emt 0:00:39]} 2. c4 {[%emt 0:00:16]} g6 {[%emt 0:00:10]} 3. Nc3 {[%emt 0:00:07]} Bg7 {[%emt 0:00:08]} 4. e4 {[%emt 0:00:41]} e5 {[%emt 0:00:07]} 5. dxe5 {[%emt 0:00:58]} dxe5 {[%emt 0:00:09]} 6. Qxd8+ {[%emt 0:00:55]} Kxd8 {[%emt 0:00:10]} 7. Bg5+ {[%emt 0:00:12]} f6 {[%emt 0:00:16]} 8. Be3 {[%emt 0:00:12] A42: Modern Defence: Averbakh Variation.} Be6 {[%emt 0:00:29]} 9. O-O-O+ {[%emt 0:00:20]} Nd7 {[%emt 0:00:13]} 10. f3 {[%emt 0:09:30]} (10. f4 $142) 10... Bh6 $11 {[%emt 0:01:08]} 11. Bxh6 {[%emt 0:00:22]} Nxh6 {[%emt 0:00:10] [#]} 12. Nh3 $146 {[%emt 0:02:45]} ({Predecessor:} 12. Bd3 c6 13. Nge2 Ke7 14. b3 a6 15. Kb2 Nf7 16. Bc2 Nd6 17. Rd2 Nc8 18. a4 a5 19. Rhd1 {½-½ (69) Bogdanovich,S (2190)-Matjushin,G (2459) Evpatoria 2006}) 12... c6 {[%emt 0:00:39]} (12... Bxh3 $5 13. gxh3 c6 $11) 13. Be2 {[%emt 0:01:01]} (13. Nf2 $15) 13... Ke7 {[%emt 0:00:17]} (13... Bxh3 $17 14. gxh3 Ke7) 14. Nf2 $15 {[%emt 0:02:52]} Nf7 {[%emt 0:00:15]} 15. Rd2 {[%emt 0:01:39]} Nb6 {[%emt 0:02:47]} (15... Nc5 {keeps more tension.} 16. Rhd1 Rhd8 17. b3 b6) 16. b3 {[%emt 0:01:34]} Rhd8 {[%emt 0:00:11]} 17. Rhd1 {[%emt 0:00:22]} Rxd2 {[%emt 0:00:11]} 18. Rxd2 {[%emt 0:00:03]} Rc8 {[%emt 0:00:46]} 19. Kb2 {[%emt 0:02:22]} h5 {[%emt 0:01:41]} 20. Nfd1 {[%emt 0:02:12]} h4 {[%emt 0:01:32]} 21. Ne3 {[%emt 0:00:12]} Ng5 {[%emt 0:00:27]} 22. b4 {[%emt 0:07:37]} f5 {[%emt 0:01:10][%cal Bf6f5,Bf5f4][%mdl 32]} 23. c5 {[%emt 0:00:21] And now exf5 would win.} f4 {[%emt 0:05:34]} 24. Ng4 {[%emt 0:06:49]} (24. Ned5+ $15 cxd5 25. exd5) 24... Nd7 $17 {[%emt 0:01:04]} 25. h3 {[%emt 0:00:47]} b6 {[%emt 0:02:16]} (25... Bxg4 $17 26. fxg4 (26. hxg4 Rh8 $17) 26... a5) 26. cxb6 $15 {[%emt 0:02:31]} axb6 {[%emt 0:00:09]} (26... Bxg4 $15 27. bxa7 (27. fxg4 axb6 28. Ba6 Rc7 $15) (27. hxg4 Nxb6 28. b5 Ne6 $15) 27... Be6) 27. a4 {[%emt 0:06:21]} Nf7 {[%emt 0:02:25]} 28. Rd1 {[%emt 0:02:57]} Nd6 {[%emt 0:03:17]} 29. Ra1 {[%emt 0:01:30]} Nc4+ {[%emt 0:01:57]} 30. Bxc4 {[%emt 0:04:02]} Bxc4 {[%emt 0:00:11]} 31. Kc2 {[%emt 0:00:43]} Ke6 {[%emt 0:01:18]} 32. Nf2 {[%emt 0:00:25]} Nb8 {[%emt 0:01:48]} 33. Na2 {[%emt 0:01:58]} Rd8 {[%emt 0:01:46]} 34. Kc3 {[%emt 0:01:05]} Rd4 {[%emt 0:00:53]} 35. b5 {[%emt 0:03:01]} (35. Nc1 $11) 35... Kd6 {[%emt 0:05:05]} (35... cxb5 $15 36. Nb4 Rd8) 36. Nb4 $11 {[%emt 0:00:52]} cxb5 {[%emt 0:01:36]} 37. Nc2 {[%emt 0:02:09] Pair of Knights!} Kc5 {[%emt 0:00:09]} (37... b4+ $1 $11 38. Nxb4 Be6) 38. Nxd4 $18 {[%emt 0:00:13]} exd4+ {[%emt 0:00:12][%mdl 4096] Endgame KRN-KBN} 39. Kd2 {[%emt 0:00:30]} Nc6 {[%emt 0:01:05]} 40. axb5 {[%emt 0:00:00]} Ne5 {[%emt 0:00:00]} 41. Ke1 {[%emt 0:06:12]} Bxb5 {[%emt 0:04:03]} 42. Ra8 {[%emt 0:00:38]} Bc4 {[%emt 0:05:52]} 43. Re8 {[%emt 0:04:44]} Kd6 {[%emt 0:00:13]} 44. Rf8 {[%emt 0:01:45]} b5 {[%emt 0:00:37]} (44... Nf7 {was called for.} 45. Rb8 Kc7) 45. Rxf4 {[%emt 0:02:28]} b4 {[%emt 0:00:06]} 46. Rf8 {[%emt 0:00:16]} (46. Rxh4 $18 {Threatens to win with f4.} Kc5 47. Rh8) 46... b3 $16 {[%emt 0:00:14] Strongly threatening ...Nd7.} 47. Nd1 {[%emt 0:02:13]} Kc5 {[%emt 0:01:27]} (47... Nd3+ $16 {was worth a try.} 48. Kd2 Kc5 49. Rc8+ Kb4 50. Rb8+ Kc5) 48. f4 $2 {[%emt 0:03:57]} (48. Nb2 $18) 48... Nd3+ $1 $14 {[%emt 0:00:27]} 49. Kd2 {[%emt 0:00:02]} b2 {[%emt 0:00:21]} 50. Nxb2 {[%emt 0:00:26]} Nxb2 {[%emt 0:00:11]} 51. f5 {[%emt 0:01:55]} gxf5 {[%emt 0:00:15]} 52. exf5 {[%emt 0:01:10] Hoping for f6.} Bd5 {[%emt 0:01:03]} 53. f6 {[%emt 0:05:30]} Nc4+ {[%emt 0:00:11]} 54. Ke2 {[%emt 0:00:04]} Ne5 {[%emt 0:00:29]} 55. Rh8 {[%emt 0:02:48]} Bxg2 {[%emt 0:02:58]} 56. Kf2 {[%emt 0:07:52]} Bd5 {[%emt 0:00:22] White must now prevent ...Nd7.} 57. Rxh4 $2 {[%emt 0:01:56]} (57. Rh5 $1 $11 Nf7 58. Rxh4) 57... Bf7 $2 {[%emt 0:00:49]} ({Better is} 57... Kc4 $1 $19 58. Rh5 Nd7) 58. Rh7 {[%emt 0:03:38][%mdl 8192]} (58. Ke2 $11 {and White stays safe.}) 58... Kd5 $2 {[%emt 0:00:15]} (58... Kc4 $19 59. Rh4 Kc3) 59. Ke2 $11 {[%emt 0:00:55]} Bg6 {[%emt 0:01:14]} 60. Re7 {[%emt 0:01:04]} Kd6 {[%emt 0:01:25]} 61. Ra7 {[%emt 0:03:16]} Ke6 {[%emt 0:02:42] aiming for ...Nc4.} 62. Ra6+ {[%emt 0:00:43]} Kd5 {[%emt 0:00:13] ( -> ...Bd3+)} 63. Ra7 $2 {[%emt 0:00:48][%mdl 8192]} (63. Kf2 $15) 63... Bh5+ $2 {[%emt 0:00:41]} (63... d3+ $1 $19 64. Kf2 Kd4) 64. Kf2 {[%emt 0:01:48]} Ke6 {[%emt 0:01:27]} 65. Ra6+ {[%emt 0:00:34] [#]} (65. Ra4 $11 {remains equal.}) 65... Kf7 {[%emt 0:00:11]} (65... Kf5 $1 $17) 66. Rd6 {[%emt 0:00:40]} d3 {[%emt 0:00:10]} 67. Rd4 {[%emt 0:02:33]} Kxf6 {[%emt 0:00:11]} 68. Ke3 {[%emt 0:00:36]} Be2 {[%emt 0:00:10]} 69. Kf4 $2 {[%emt 0:02:00][%mdl 8192] [#]} (69. h4 $11) 69... Nf7 $2 {[%emt 0:02:21]} (69... Nc6 $1 $19 {[%cal Rc6d4]} 70. Rd5 Ke6) 70. Ke3 {[%emt 0:00:21] What a fight!  Weighted Error Value: White=0.42/Black=0.43} 1/2-1/2